[Event "Titled Tuesday Blitz March 07 Early 2023"]
[White "Mahdavi, Reza"]
[Black "Zakhartsov, Vladimir"]
[WhiteFideId "12595926"]
[BlackFideId "4145097"]
[WhiteElo "2208"]
[BlackElo "2521"]
[Result "1-0"]
[Round "11"]
[TimeControl "180+2"]
[Date "2023.03.07"]
[WhiteClock "0:00:09"]
[BlackClock "0:00:03"]

1. Nf3 {[%clk 0:03:00]}  g6 {[%clk 0:02:56]} 2. g3 {[%clk 0:02:59]}  Bg7 {[%clk 0:02:56]} 3. Bg2 {[%clk 0:02:58]}  d5 {[%clk 0:02:54]} 4. d4 {[%clk 0:02:54]}  Nf6 {[%clk 0:02:53]} 5. O-O {[%clk 0:02:53]}  O-O {[%clk 0:02:53]} 6. c4 {[%clk 0:02:32]}  dxc4 {[%clk 0:02:54]} 7. a4 {[%clk 0:02:17]}  c5 {[%clk 0:02:43]} 8. Na3 {[%clk 0:02:04]}  cxd4 {[%clk 0:02:39]} 9. Qxd4 {[%clk 0:02:05]}  Qxd4 {[%clk 0:02:36]} 10. Nxd4 {[%clk 0:02:06]}  Ne8 {[%clk 0:02:32]} 11. Be3 {[%clk 0:02:03]}  Nd6 {[%clk 0:02:29]} 12. Rac1 {[%clk 0:02:03]}  Bxd4 {[%clk 0:02:26]} 13. Bxd4 {[%clk 0:02:02]}  Be6 {[%clk 0:02:26]} 14. Bc5 {[%clk 0:01:44]}  Nc6 {[%clk 0:02:23]} 15. Rfd1 {[%clk 0:01:29]}  Na5 {[%clk 0:02:17]} 16. Bb4 {[%clk 0:01:26]}  Nb3 {[%clk 0:02:13]} 17. Rc3 {[%clk 0:01:26]}  Rac8 {[%clk 0:02:07]} 18. Bxd6 {[%clk 0:01:23]}  exd6 {[%clk 0:02:07]} 19. Nb5 {[%clk 0:01:20]}  Rfd8 {[%clk 0:01:55]} 20. Bxb7 {[%clk 0:01:15]}  Rb8 {[%clk 0:01:47]} 21. Rxd6 {[%clk 0:01:16]}  Rxd6 {[%clk 0:01:38]} 22. Nxd6 {[%clk 0:01:17]}  Nd4 {[%clk 0:01:35]} 23. Kf1 {[%clk 0:01:07]}  Nf5 {[%clk 0:01:02]} 24. Nxf5 {[%clk 0:01:06]}  Rxb7 {[%clk 0:01:03]} 25. Nd4 {[%clk 0:01:00]}  Bd5 {[%clk 0:00:59]} 26. Rc2 {[%clk 0:00:58]}  Rb4 {[%clk 0:00:59]} 27. f3 {[%clk 0:00:48]}  Rxa4 {[%clk 0:00:57]} 28. Kf2 {[%clk 0:00:45]}  f5 {[%clk 0:00:57]} 29. Rd2 {[%clk 0:00:43]}  Ra5 {[%clk 0:00:47]} 30. Nc2 {[%clk 0:00:39]}  Kf7 {[%clk 0:00:46]} 31. Ne3 {[%clk 0:00:37]}  Be6 {[%clk 0:00:46]} 32. Rd4 {[%clk 0:00:32]}  Rc5 {[%clk 0:00:42]} 33. Rd6 {[%clk 0:00:31]}  Bc8 {[%clk 0:00:34]} 34. Nd1 {[%clk 0:00:26]}  Ke7 {[%clk 0:00:33]} 35. Rd4 {[%clk 0:00:26]}  Be6 {[%clk 0:00:32]} 36. Nc3 {[%clk 0:00:26]}  Rc8 {[%clk 0:00:29]} 37. Rh4 {[%clk 0:00:17]}  Bg8 {[%clk 0:00:28]} 38. Rd4 {[%clk 0:00:16]}  Rb8 {[%clk 0:00:26]} 39. Rd2 {[%clk 0:00:16]}  Be6 {[%clk 0:00:25]} 40. e4 {[%clk 0:00:16]}  fxe4 {[%clk 0:00:22]} 41. Nxe4 {[%clk 0:00:17]}  Bf5 {[%clk 0:00:18]} 42. Nc3 {[%clk 0:00:17]}  Bd3 {[%clk 0:00:17]} 43. Ke3 {[%clk 0:00:17]}  Kd6 {[%clk 0:00:17]} 44. Ne4+ {[%clk 0:00:16]}  Kc6 {[%clk 0:00:17]} 45. Nf2 {[%clk 0:00:17]}  Bf5 {[%clk 0:00:15]} 46. g4 {[%clk 0:00:17]}  Be6 {[%clk 0:00:15]} 47. Ne4 {[%clk 0:00:17]}  Bd5 {[%clk 0:00:14]} 48. Nc3 {[%clk 0:00:17]}  Rb3 {[%clk 0:00:13]} 49. f4 {[%clk 0:00:15]}  a5 {[%clk 0:00:12]} 50. Kd4 {[%clk 0:00:15]}  Bf7 {[%clk 0:00:11]} 51. Re2 {[%clk 0:00:14]}  Rb7 {[%clk 0:00:11]} 52. Re5 {[%clk 0:00:13]}  Rd7+ {[%clk 0:00:11]} 53. Ke3 {[%clk 0:00:13]}  Rd3+ {[%clk 0:00:11]} 54. Ke2 {[%clk 0:00:14]}  Rh3 {[%clk 0:00:11]} 55. Rxa5 {[%clk 0:00:12]}  Rxh2+ {[%clk 0:00:11]} 56. Ke3 {[%clk 0:00:12]}  Rxb2 {[%clk 0:00:11]} 57. Ra7 {[%clk 0:00:09]}  Be6 {[%clk 0:00:11]} 58. g5 {[%clk 0:00:06]}  Rh2 {[%clk 0:00:08]} 59. Kd4 {[%clk 0:00:05]}  Rh3 {[%clk 0:00:06]} 60. Ra6+ {[%clk 0:00:03]}  Kd7 {[%clk 0:00:06]} 61. Ne4 {[%clk 0:00:03]}  Rd3+ {[%clk 0:00:06]} 62. Ke5 {[%clk 0:00:02]}  Rd5+ {[%clk 0:00:06]} 63. Kf6 {[%clk 0:00:03]}  Rf5+ {[%clk 0:00:07]} 64. Kg7 {[%clk 0:00:03]}  Rf7+ {[%clk 0:00:04]} 65. Kh6 {[%clk 0:00:04]}  Bf5 {[%clk 0:00:03]} 66. Nc5+ {[%clk 0:00:02]}  Ke7 {[%clk 0:00:02]} 67. Ra7+ {[%clk 0:00:02]}  Kf8 {[%clk 0:00:02]} 68. Ra8+ {[%clk 0:00:03]}  Ke7 {[%clk 0:00:03]} 69. Ra7+ {[%clk 0:00:04]}  Ke8 {[%clk 0:00:03]} 70. Ra4 {[%clk 0:00:04]}  c3 {[%clk 0:00:03]} 71. Rc4 {[%clk 0:00:05]}  c2 {[%clk 0:00:03]} 72. Nb3 {[%clk 0:00:05]}  Rb7 {[%clk 0:00:02]} 73. Nd4 {[%clk 0:00:05]}  Bd3 {[%clk 0:00:02]} 74. Rc3 {[%clk 0:00:05]}  Rd7 {[%clk 0:00:02]} 75. Nxc2 {[%clk 0:00:06]}  Bf5 {[%clk 0:00:02]} 76. Ne3 {[%clk 0:00:06]}  Be4 {[%clk 0:00:01]} 77. Rc4 {[%clk 0:00:06]}  Bf5 {[%clk 0:00:01]} 78. Nxf5 {[%clk 0:00:06]}  gxf5 {[%clk 0:00:02]} 79. Rc5 {[%clk 0:00:07]}  Rf7 {[%clk 0:00:03]} 80. Rc8+ {[%clk 0:00:06]}  Kd7 {[%clk 0:00:03]} 81. Rh8 {[%clk 0:00:07]}  Ke6 {[%clk 0:00:03]} 82. Rxh7 {[%clk 0:00:08]}  Rf8 {[%clk 0:00:04]} 83. Ra7 {[%clk 0:00:08]}  Kd5 {[%clk 0:00:04]} 84. Re7 {[%clk 0:00:07]}  Kd4 {[%clk 0:00:03]} 85. Kg7 {[%clk 0:00:07]}  Ra8 {[%clk 0:00:03]} 86. g6 {[%clk 0:00:08]}  Ra1 {[%clk 0:00:04]} 87. Kf7 {[%clk 0:00:08]}  Rg1 {[%clk 0:00:03]} 88. g7 {[%clk 0:00:09]} 1-0


[Site "https://www.chess.com"]

[Event "Titled Tuesday Blitz March 07 Early 2023"]
[White "Naroditsky, Daniel"]
[Black "Yuan, Qingyu"]
[WhiteFideId "2026961"]
[BlackFideId "8609772"]
[WhiteElo "2633"]
[BlackElo "2359"]
[Result "1-0"]
[Round "11"]
[TimeControl "180+2"]
[Date "2023.03.07"]
[WhiteClock "0:01:48"]
[BlackClock "0:00:02"]

1. d4 {[%clk 0:03:00]}  d5 {[%clk 0:03:00]} 2. Nc3 {[%clk 0:03:01]}  Nf6 {[%clk 0:03:00]} 3. Bf4 {[%clk 0:03:02]}  c5 {[%clk 0:03:00]} 4. e3 {[%clk 0:03:01]}  cxd4 {[%clk 0:02:52]} 5. exd4 {[%clk 0:03:02]}  a6 {[%clk 0:02:50]} 6. Nf3 {[%clk 0:03:02]}  Nc6 {[%clk 0:02:50]} 7. Ne5 {[%clk 0:03:01]}  Bd7 {[%clk 0:02:51]} 8. g3 {[%clk 0:03:00]}  e6 {[%clk 0:02:51]} 9. Bg2 {[%clk 0:03:00]}  Be7 {[%clk 0:02:51]} 10. Nxd7 {[%clk 0:03:00]}  Qxd7 {[%clk 0:02:52]} 11. O-O {[%clk 0:03:01]}  O-O {[%clk 0:02:52]} 12. Ne2 {[%clk 0:03:02]}  Rac8 {[%clk 0:02:45]} 13. c3 {[%clk 0:03:02]}  b5 {[%clk 0:02:41]} 14. a3 {[%clk 0:03:02]}  Na5 {[%clk 0:02:40]} 15. Nc1 {[%clk 0:03:01]}  Nc4 {[%clk 0:02:36]} 16. Nd3 {[%clk 0:03:02]}  a5 {[%clk 0:02:29]} 17. a4 {[%clk 0:03:00]}  b4 {[%clk 0:02:23]} 18. cxb4 {[%clk 0:02:59]}  axb4 {[%clk 0:02:00]} 19. b3 {[%clk 0:02:57]}  Na5 {[%clk 0:01:44]} 20. Bd2 {[%clk 0:02:56]}  Qb7 {[%clk 0:01:40]} 21. Rb1 {[%clk 0:02:47]}  Ne4 {[%clk 0:01:40]} 22. Be1 {[%clk 0:02:37]}  h6 {[%clk 0:01:31]} 23. Qg4 {[%clk 0:02:29]}  f5 {[%clk 0:01:14]} 24. Qe2 {[%clk 0:02:28]}  Qb6 {[%clk 0:01:08]} 25. Nf4 {[%clk 0:02:25]}  Bf6 {[%clk 0:01:05]} 26. Qb5 {[%clk 0:02:12]}  Qxb5 {[%clk 0:00:39]} 27. axb5 {[%clk 0:02:13]}  Rfe8 {[%clk 0:00:29]} 28. Bxb4 {[%clk 0:02:11]}  Nb7 {[%clk 0:00:29]} 29. Rfd1 {[%clk 0:02:07]}  Ned6 {[%clk 0:00:21]} 30. Nxe6 {[%clk 0:02:03]}  Ne4 {[%clk 0:00:12]} 31. Nc5 {[%clk 0:01:56]}  Be7 {[%clk 0:00:06]} 32. Rbc1 {[%clk 0:01:53]}  Nbxc5 {[%clk 0:00:03]} 33. dxc5 {[%clk 0:01:52]}  Nxc5 {[%clk 0:00:03]} 34. Bxd5+ {[%clk 0:01:48]}  Kh7 {[%clk 0:00:03]} 35. b6 {[%clk 0:01:48]}  Ne4 {[%clk 0:00:02]} 36. Bxe7 {[%clk 0:01:47]}  Rxc1 {[%clk 0:00:01]} 37. Rxc1 {[%clk 0:01:48]}  Rxe7 {[%clk 0:00:02]} 38. b7 {[%clk 0:01:48]} 1-0


[Site "https://www.chess.com"]

[Event "Titled Tuesday Blitz March 07 Early 2023"]
[White "Lazavik, Denis"]
[Black "Nogerbek, Kazybek"]
[WhiteFideId "13515110"]
[BlackFideId "13710427"]
[WhiteElo "2560"]
[BlackElo "2501"]
[Result "1-0"]
[Round "11"]
[TimeControl "180+2"]
[Date "2023.03.07"]
[WhiteClock "0:00:43"]
[BlackClock "0:00:57"]

1. d4 {[%clk 0:03:00]}  Nf6 {[%clk 0:02:53]} 2. c4 {[%clk 0:03:01]}  e6 {[%clk 0:02:53]} 3. Nf3 {[%clk 0:03:02]}  d5 {[%clk 0:02:53]} 4. g3 {[%clk 0:03:02]}  Be7 {[%clk 0:02:53]} 5. Bg2 {[%clk 0:03:03]}  O-O {[%clk 0:02:54]} 6. O-O {[%clk 0:03:03]}  dxc4 {[%clk 0:02:54]} 7. Qc2 {[%clk 0:03:04]}  a6 {[%clk 0:02:55]} 8. a4 {[%clk 0:03:05]}  Bd7 {[%clk 0:02:55]} 9. Qxc4 {[%clk 0:03:05]}  Bc6 {[%clk 0:02:56]} 10. Bg5 {[%clk 0:03:05]}  Nbd7 {[%clk 0:02:49]} 11. Rd1 {[%clk 0:03:04]}  a5 {[%clk 0:02:49]} 12. Nbd2 {[%clk 0:03:03]}  h6 {[%clk 0:02:49]} 13. Bxf6 {[%clk 0:03:03]}  Nxf6 {[%clk 0:02:50]} 14. Qd3 {[%clk 0:03:03]}  Bxf3 {[%clk 0:02:47]} 15. Bxf3 {[%clk 0:02:51]}  c6 {[%clk 0:02:47]} 16. Nc4 {[%clk 0:02:51]}  Bb4 {[%clk 0:02:47]} 17. e4 {[%clk 0:02:49]}  Qe7 {[%clk 0:02:46]} 18. Kg2 {[%clk 0:02:46]}  Rad8 {[%clk 0:02:45]} 19. Qe3 {[%clk 0:02:46]}  Qc7 {[%clk 0:02:44]} 20. h4 {[%clk 0:02:44]}  Rd7 {[%clk 0:02:42]} 21. Ne5 {[%clk 0:02:40]}  Rdd8 {[%clk 0:02:32]} 22. Rac1 {[%clk 0:02:23]}  Nd7 {[%clk 0:02:29]} 23. Nd3 {[%clk 0:02:21]}  Qb6 {[%clk 0:02:28]} 24. e5 {[%clk 0:02:15]}  Nb8 {[%clk 0:02:23]} 25. Nf4 {[%clk 0:02:01]}  Rd7 {[%clk 0:02:23]} 26. Be4 {[%clk 0:01:45]}  Rfd8 {[%clk 0:02:22]} 27. Rc4 {[%clk 0:01:46]}  Na6 {[%clk 0:02:10]} 28. b3 {[%clk 0:01:07]}  Bf8 {[%clk 0:02:08]} 29. Kh2 {[%clk 0:00:55]}  Nc7 {[%clk 0:02:05]} 30. Bc2 {[%clk 0:00:52]}  Nd5 {[%clk 0:01:53]} 31. Qe4 {[%clk 0:00:50]}  g6 {[%clk 0:01:49]} 32. h5 {[%clk 0:00:46]}  Bg7 {[%clk 0:00:56]} 33. hxg6 {[%clk 0:00:45]}  fxg6 {[%clk 0:00:57]} 34. Nxe6 {[%clk 0:00:43]} 1-0


[Site "https://www.chess.com"]

[Event "Titled Tuesday Blitz March 07 Early 2023"]
[White "Terry, Renato"]
[Black "Krzyzanowski, Marcin"]
[WhiteFideId "3803457"]
[BlackFideId "1132199"]
[WhiteElo "2579"]
[BlackElo "2471"]
[Result "0-1"]
[Round "11"]
[TimeControl "180+2"]
[Date "2023.03.07"]
[WhiteClock "0:01:59"]
[BlackClock "0:01:26"]

1. Nf3 {[%clk 0:03:00]}  d5 {[%clk 0:02:58]} 2. g3 {[%clk 0:03:00]}  g6 {[%clk 0:02:56]} 3. Bg2 {[%clk 0:02:59]}  Bg7 {[%clk 0:02:55]} 4. O-O {[%clk 0:02:59]}  e5 {[%clk 0:02:55]} 5. d3 {[%clk 0:02:59]}  Ne7 {[%clk 0:02:52]} 6. e4 {[%clk 0:03:00]}  O-O {[%clk 0:02:51]} 7. Nc3 {[%clk 0:02:59]}  d4 {[%clk 0:02:35]} 8. Ne2 {[%clk 0:02:59]}  c5 {[%clk 0:02:35]} 9. Nd2 {[%clk 0:02:59]}  Nbc6 {[%clk 0:02:34]} 10. a4 {[%clk 0:02:59]}  Be6 {[%clk 0:02:22]} 11. f4 {[%clk 0:02:37]}  f5 {[%clk 0:02:14]} 12. fxe5 {[%clk 0:02:31]}  Nxe5 {[%clk 0:02:15]} 13. Nf4 {[%clk 0:02:30]}  Bf7 {[%clk 0:02:14]} 14. exf5 {[%clk 0:02:25]}  Nxf5 {[%clk 0:02:14]} 15. Ne4 {[%clk 0:02:25]}  c4 {[%clk 0:02:05]} 16. Bd2 {[%clk 0:02:15]}  Rc8 {[%clk 0:01:50]} 17. Bb4 {[%clk 0:02:09]}  Ne3 {[%clk 0:01:50]} 18. Qe2 {[%clk 0:02:08]}  cxd3 {[%clk 0:01:49]} 19. cxd3 {[%clk 0:02:08]}  Rc2 {[%clk 0:01:48]} 20. Nd2 {[%clk 0:02:04]}  Nxf1 {[%clk 0:01:39]} 21. Rxf1 {[%clk 0:02:02]}  Re8 {[%clk 0:01:37]} 22. Be4 {[%clk 0:01:59]}  Rxb2 {[%clk 0:01:26]} 0-1


[Site "https://www.chess.com"]

[Event "Titled Tuesday Blitz March 07 Early 2023"]
[White "Atakhan, Abtin"]
[Black "Ibarra Jerez, Jose Carlos"]
[WhiteFideId "22502203"]
[BlackFideId "2226332"]
[WhiteElo "2008"]
[BlackElo "2638"]
[Result "0-1"]
[Round "11"]
[TimeControl "180+2"]
[Date "2023.03.07"]
[WhiteClock "0:00:01"]
[BlackClock "0:00:11"]

1. c4 {[%clk 0:03:00]}  e5 {[%clk 0:03:00]} 2. Nc3 {[%clk 0:03:00]}  Nf6 {[%clk 0:02:59]} 3. Nf3 {[%clk 0:03:00]}  e4 {[%clk 0:02:59]} 4. Ng5 {[%clk 0:03:00]}  c6 {[%clk 0:03:00]} 5. Ngxe4 {[%clk 0:03:00]}  Nxe4 {[%clk 0:03:01]} 6. Nxe4 {[%clk 0:03:01]}  d5 {[%clk 0:03:01]} 7. cxd5 {[%clk 0:03:01]}  cxd5 {[%clk 0:03:02]} 8. Ng3 {[%clk 0:03:02]}  h5 {[%clk 0:03:02]} 9. e3 {[%clk 0:03:01]}  h4 {[%clk 0:03:03]} 10. Ne2 {[%clk 0:03:02]}  Nc6 {[%clk 0:03:03]} 11. d4 {[%clk 0:03:02]}  Bf5 {[%clk 0:03:03]} 12. Bd2 {[%clk 0:03:03]}  Qf6 {[%clk 0:02:58]} 13. Rc1 {[%clk 0:03:01]}  h3 {[%clk 0:02:54]} 14. Ng3 {[%clk 0:02:50]}  Bd7 {[%clk 0:02:44]} 15. Qf3 {[%clk 0:02:38]}  Qe6 {[%clk 0:02:38]} 16. Ne2 {[%clk 0:02:19]}  O-O-O {[%clk 0:02:35]} 17. b4 {[%clk 0:01:51]}  Kb8 {[%clk 0:02:34]} 18. b5 {[%clk 0:01:44]}  Nb4 {[%clk 0:02:11]} 19. Nf4 {[%clk 0:01:40]}  Qf5 {[%clk 0:02:12]} 20. Qd1 {[%clk 0:01:22]}  Bd6 {[%clk 0:01:49]} 21. g4 {[%clk 0:01:12]}  Qh7 {[%clk 0:01:34]} 22. Qb3 {[%clk 0:01:00]}  Qe4 {[%clk 0:01:27]} 23. Bxb4 {[%clk 0:00:25]}  Bxf4 {[%clk 0:01:23]} 24. Rg1 {[%clk 0:00:14]}  Bxh2 {[%clk 0:01:22]} 25. Bd3 {[%clk 0:00:15]}  Qf3 {[%clk 0:01:01]} 26. Be2 {[%clk 0:00:14]}  Qe4 {[%clk 0:00:58]} 27. Bd3 {[%clk 0:00:12]}  Qe6 {[%clk 0:00:38]} 28. Rh1 {[%clk 0:00:12]}  Qxg4 {[%clk 0:00:35]} 29. Kd2 {[%clk 0:00:05]}  Qg2 {[%clk 0:00:29]} 30. Be2 {[%clk 0:00:02]}  Rhe8 {[%clk 0:00:24]} 31. b6 {[%clk 0:00:02]}  axb6 {[%clk 0:00:23]} 32. Rcf1 {[%clk 0:00:02]}  Rc8 {[%clk 0:00:20]} 33. Qa3 {[%clk 0:00:01]}  Rc6 {[%clk 0:00:19]} 34. Bb5 {[%clk 0:00:01]}  Rec8 {[%clk 0:00:12]} 35. Rxh2 {[%clk 0:00:01]}  Qxh2 {[%clk 0:00:11]} 36. Bxc6 {[%clk 0:00:01]}  Rxc6 {[%clk 0:00:12]} 37. Ke2 {[%clk 0:00:01]}  Bg4+ {[%clk 0:00:11]} 38. Kd3 {[%clk 0:00:01]}  Qc7 {[%clk 0:00:10]} 39. Rg1 {[%clk 0:00:01]}  Bf5+ {[%clk 0:00:10]} 40. Ke2 {[%clk 0:00:01]}  Be4 {[%clk 0:00:10]} 41. Rd1 {[%clk 0:00:01]}  Rc2+ {[%clk 0:00:11]} 42. Rd2 {[%clk 0:00:01]}  Qc4+ {[%clk 0:00:11]} 0-1


[Site "https://www.chess.com"]

[Event "Titled Tuesday Blitz March 07 Early 2023"]
[White "Real_OceanStorm"]
[Black "Rustemov, Alexander"]
[BlackFideId "4119002"]
[WhiteElo "2771"]
[BlackElo "2894"]
[Result "1-0"]
[Round "11"]
[TimeControl "180+2"]
[Date "2023.03.07"]
[WhiteClock "0:00:04"]
[BlackClock "0:00:01"]

1. e4 {[%clk 0:03:00]}  e6 {[%clk 0:02:57]} 2. f4 {[%clk 0:03:00]}  d5 {[%clk 0:02:57]} 3. e5 {[%clk 0:03:00]}  c5 {[%clk 0:02:56]} 4. Nf3 {[%clk 0:03:00]}  Nc6 {[%clk 0:02:55]} 5. g4 {[%clk 0:03:00]}  h5 {[%clk 0:02:53]} 6. g5 {[%clk 0:03:00]}  Nge7 {[%clk 0:02:50]} 7. c3 {[%clk 0:02:59]}  Nf5 {[%clk 0:02:48]} 8. Bd3 {[%clk 0:02:57]}  Qb6 {[%clk 0:02:41]} 9. Bxf5 {[%clk 0:02:57]}  exf5 {[%clk 0:02:40]} 10. d4 {[%clk 0:02:56]}  Be6 {[%clk 0:02:35]} 11. O-O {[%clk 0:02:54]}  Rc8 {[%clk 0:02:30]} 12. Rf2 {[%clk 0:02:11]}  cxd4 {[%clk 0:02:26]} 13. cxd4 {[%clk 0:02:12]}  g6 {[%clk 0:02:25]} 14. Nc3 {[%clk 0:02:10]}  Be7 {[%clk 0:02:24]} 15. Be3 {[%clk 0:01:59]}  O-O {[%clk 0:02:23]} 16. Rc1 {[%clk 0:01:57]}  Qa6 {[%clk 0:02:07]} 17. Rfc2 {[%clk 0:01:53]}  Nb4 {[%clk 0:02:00]} 18. Rd2 {[%clk 0:01:52]}  Nxa2 {[%clk 0:01:56]} 19. Nxa2 {[%clk 0:01:51]}  Qxa2 {[%clk 0:01:55]} 20. Ra1 {[%clk 0:01:52]}  Qc4 {[%clk 0:01:53]} 21. Rxa7 {[%clk 0:01:51]}  Bb4 {[%clk 0:01:37]} 22. Rd3 {[%clk 0:01:50]}  Rc7 {[%clk 0:01:29]} 23. Ra4 {[%clk 0:00:44]}  Bd7 {[%clk 0:01:29]} 24. Ra7 {[%clk 0:00:43]}  Rfc8 {[%clk 0:01:27]} 25. Ra1 {[%clk 0:00:30]}  Bb5 {[%clk 0:01:25]} 26. Rb3 {[%clk 0:00:27]}  Be7 {[%clk 0:01:14]} 27. Rc3 {[%clk 0:00:09]}  Qe2 {[%clk 0:01:09]} 28. Qxe2 {[%clk 0:00:09]}  Bxe2 {[%clk 0:01:09]} 29. Rxc7 {[%clk 0:00:09]}  Rxc7 {[%clk 0:01:10]} 30. Ne1 {[%clk 0:00:09]}  Ba6 {[%clk 0:01:05]} 31. Bd2 {[%clk 0:00:09]}  Kf8 {[%clk 0:00:58]} 32. Bc3 {[%clk 0:00:09]}  Ke8 {[%clk 0:00:57]} 33. Nc2 {[%clk 0:00:09]}  Kd7 {[%clk 0:00:57]} 34. Ne3 {[%clk 0:00:09]}  Ke6 {[%clk 0:00:56]} 35. h3 {[%clk 0:00:09]}  Bd3 {[%clk 0:00:52]} 36. Kf2 {[%clk 0:00:09]}  Be4 {[%clk 0:00:50]} 37. Ra7 {[%clk 0:00:04]}  Kd7 {[%clk 0:00:30]} 38. Ba5 {[%clk 0:00:04]}  b6 {[%clk 0:00:26]} 39. Bxb6 {[%clk 0:00:04]}  Rxa7 {[%clk 0:00:25]} 40. Bxa7 {[%clk 0:00:05]}  Kc6 {[%clk 0:00:19]} 41. Bb8 {[%clk 0:00:04]}  Bb4 {[%clk 0:00:17]} 42. h4 {[%clk 0:00:04]}  Bd2 {[%clk 0:00:16]} 43. Bd6 {[%clk 0:00:02]}  Kb5 {[%clk 0:00:16]} 44. Bc5 {[%clk 0:00:03]}  Bc1 {[%clk 0:00:16]} 45. b3 {[%clk 0:00:03]}  Bb2 {[%clk 0:00:13]} 46. Nd1 {[%clk 0:00:02]}  Bc1 {[%clk 0:00:11]} 47. Ne3 {[%clk 0:00:03]}  Bd2 {[%clk 0:00:12]} 48. Ke2 {[%clk 0:00:03]}  Bc3 {[%clk 0:00:12]} 49. Nd1 {[%clk 0:00:03]}  Ba5 {[%clk 0:00:11]} 50. Ne3 {[%clk 0:00:03]}  Bc7 {[%clk 0:00:10]} 51. b4 {[%clk 0:00:03]}  Ka4 {[%clk 0:00:09]} 52. Nd1 {[%clk 0:00:04]}  Kb3 {[%clk 0:00:06]} 53. b5 {[%clk 0:00:02]}  Kc4 {[%clk 0:00:05]} 54. b6 {[%clk 0:00:02]}  Bb8 {[%clk 0:00:04]} 55. Bd6 {[%clk 0:00:03]}  Kb5 {[%clk 0:00:01]} 56. Bxb8 {[%clk 0:00:02]}  Kxb6 {[%clk 0:00:02]} 57. Bd6 {[%clk 0:00:03]}  Kc6 {[%clk 0:00:02]} 58. Nf2 {[%clk 0:00:04]}  Bc2 {[%clk 0:00:01]} 59. Nd3 {[%clk 0:00:04]} 1-0


[Site "https://www.chess.com"]

[Event "Titled Tuesday Blitz March 07 Early 2023"]
[White "Yilmaz, Mustafa"]
[Black "Nazari, Arad"]
[WhiteFideId "6302718"]
[BlackFideId "12577324"]
[WhiteElo "2523"]
[BlackElo "2313"]
[Result "1-0"]
[Round "11"]
[TimeControl "180+2"]
[Date "2023.03.07"]
[WhiteClock "0:00:05"]
[BlackClock "0:00:02"]

1. d4 {[%clk 0:03:00]}  Nf6 {[%clk 0:02:55]} 2. c4 {[%clk 0:03:01]}  g6 {[%clk 0:02:52]} 3. Nc3 {[%clk 0:03:00]}  d5 {[%clk 0:02:51]} 4. cxd5 {[%clk 0:02:59]}  Nxd5 {[%clk 0:02:52]} 5. e4 {[%clk 0:03:00]}  Nxc3 {[%clk 0:02:52]} 6. bxc3 {[%clk 0:03:01]}  Bg7 {[%clk 0:02:53]} 7. Be3 {[%clk 0:03:02]}  O-O {[%clk 0:02:52]} 8. Nf3 {[%clk 0:03:02]}  c5 {[%clk 0:02:53]} 9. Be2 {[%clk 0:03:02]}  Qa5 {[%clk 0:02:53]} 10. O-O {[%clk 0:03:03]}  Bg4 {[%clk 0:02:44]} 11. Qb3 {[%clk 0:02:29]}  Bxf3 {[%clk 0:02:09]} 12. Bxf3 {[%clk 0:02:28]}  cxd4 {[%clk 0:02:09]} 13. cxd4 {[%clk 0:02:29]}  Nc6 {[%clk 0:02:09]} 14. Rad1 {[%clk 0:02:20]}  Qb4 {[%clk 0:01:55]} 15. d5 {[%clk 0:02:20]}  Qxb3 {[%clk 0:01:54]} 16. axb3 {[%clk 0:02:21]}  Ne5 {[%clk 0:01:36]} 17. Be2 {[%clk 0:02:20]}  Rfc8 {[%clk 0:01:35]} 18. f4 {[%clk 0:02:18]}  Nd7 {[%clk 0:01:36]} 19. Bg4 {[%clk 0:01:57]}  Rd8 {[%clk 0:01:23]} 20. e5 {[%clk 0:01:56]}  f6 {[%clk 0:01:02]} 21. Be6+ {[%clk 0:01:31]}  Kf8 {[%clk 0:00:58]} 22. Rc1 {[%clk 0:01:15]}  Ke8 {[%clk 0:00:46]} 23. Rc7 {[%clk 0:01:09]}  fxe5 {[%clk 0:00:44]} 24. fxe5 {[%clk 0:01:04]}  Nxe5 {[%clk 0:00:42]} 25. Bg5 {[%clk 0:00:19]}  Nd7 {[%clk 0:00:20]} 26. Bxe7 {[%clk 0:00:18]}  Bd4+ {[%clk 0:00:15]} 27. Kh1 {[%clk 0:00:19]}  Kxe7 {[%clk 0:00:13]} 28. Rf7+ {[%clk 0:00:19]}  Kd6 {[%clk 0:00:13]} 29. Rfxd7+ {[%clk 0:00:20]}  Rxd7 {[%clk 0:00:14]} 30. Rxd7+ {[%clk 0:00:21]}  Ke5 {[%clk 0:00:12]} 31. Rxb7 {[%clk 0:00:20]}  Rf8 {[%clk 0:00:13]} 32. h4 {[%clk 0:00:18]}  h5 {[%clk 0:00:12]} 33. Bf7 {[%clk 0:00:15]}  Bf2 {[%clk 0:00:08]} 34. Bxg6 {[%clk 0:00:14]}  Kxd5 {[%clk 0:00:09]} 35. Bxh5 {[%clk 0:00:08]}  Bxh4 {[%clk 0:00:07]} 36. Bf3+ {[%clk 0:00:08]}  Kc5 {[%clk 0:00:06]} 37. Rxa7 {[%clk 0:00:05]}  Bf2 {[%clk 0:00:06]} 38. Rh7 {[%clk 0:00:05]}  Kb4 {[%clk 0:00:06]} 39. Bd5 {[%clk 0:00:04]}  Rd8 {[%clk 0:00:07]} 40. Bc4 {[%clk 0:00:03]}  Bg3 {[%clk 0:00:06]} 41. Rb7+ {[%clk 0:00:02]}  Kc3 {[%clk 0:00:06]} 42. Rf7 {[%clk 0:00:02]}  Rd1+ {[%clk 0:00:03]} 43. Bf1 {[%clk 0:00:02]}  Kxb3 {[%clk 0:00:03]} 44. Rf3+ {[%clk 0:00:03]}  Kb4 {[%clk 0:00:03]} 45. Rxg3 {[%clk 0:00:03]}  Rxf1+ {[%clk 0:00:04]} 46. Kh2 {[%clk 0:00:04]}  Kc5 {[%clk 0:00:05]} 47. Rd3 {[%clk 0:00:04]}  Rf8 {[%clk 0:00:04]} 48. g4 {[%clk 0:00:05]}  Rg8 {[%clk 0:00:05]} 49. Kg3 {[%clk 0:00:05]}  Kc4 {[%clk 0:00:05]} 50. Rd7 {[%clk 0:00:05]}  Kc5 {[%clk 0:00:06]} 51. Kf4 {[%clk 0:00:05]}  Rf8+ {[%clk 0:00:06]} 52. Ke5 {[%clk 0:00:06]}  Rg8 {[%clk 0:00:03]} 53. Kf5 {[%clk 0:00:06]}  Rf8+ {[%clk 0:00:02]} 54. Kg6 {[%clk 0:00:05]}  Kc6 {[%clk 0:00:02]} 55. Rf7 {[%clk 0:00:04]}  Rg8+ {[%clk 0:00:02]} 56. Rg7 {[%clk 0:00:05]}  Rf8 {[%clk 0:00:03]} 57. g5 {[%clk 0:00:04]}  Kd6 {[%clk 0:00:03]} 58. Rf7 {[%clk 0:00:03]}  Rg8+ {[%clk 0:00:03]} 59. Kh6 {[%clk 0:00:04]}  Ke6 {[%clk 0:00:03]} 60. Rf1 {[%clk 0:00:03]}  Ke7 {[%clk 0:00:03]} 61. g6 {[%clk 0:00:03]}  Rh8+ {[%clk 0:00:03]} 62. Kg7 {[%clk 0:00:04]}  Ra8 {[%clk 0:00:03]} 63. Re1+ {[%clk 0:00:04]}  Kd6 {[%clk 0:00:03]} 64. Kh7 {[%clk 0:00:05]}  Ra2 {[%clk 0:00:01]} 65. g7 {[%clk 0:00:05]}  Rh2+ {[%clk 0:00:02]} 66. Kg8 {[%clk 0:00:05]}  Kd7 {[%clk 0:00:03]} 67. Re4 {[%clk 0:00:04]}  Rh3 {[%clk 0:00:02]} 68. Kf7 {[%clk 0:00:04]}  Rf3+ {[%clk 0:00:03]} 69. Kg6 {[%clk 0:00:05]}  Rg3+ {[%clk 0:00:04]} 70. Kf6 {[%clk 0:00:06]}  Rf3+ {[%clk 0:00:04]} 71. Kg5 {[%clk 0:00:06]}  Rf8 {[%clk 0:00:02]} 72. gxf8=Q {[%clk 0:00:05]} 1-0


[Site "https://www.chess.com"]